bitfinex-derivatives/quotes_ETHF0:USTF0_20260119
["timestamp","ask_amount","ask_price","bid_price","bid_amount"]
[1768865796334,0.1388464,3196.3,3194.9,3.434]
[1768865796532,0.86583576,3196.2,3194.9,3.434]
[1768865796734,0.1388464,3196.3,3194.6,0.15661]
[1768865796933,0.86583406,3196.2,3194.7,3.436]
[1768865797139,0.1388464,3196.3,3194.7,3.436]
[1768865797336,0.86583498,3196.2,3194.7,3.436]
[1768865797639,0.1388464,3196.3,3194.8,3.437]
[1768865797843,0.86588721,3196.2,3194.8,3.437]
[1768865798036,0.1388464,3196.3,3194.8,3.437]
[1768865798238,0.86588753,3196.2,3194.8,3.437]
[1768865798539,0.1388464,3196.3,3194.8,3.437]
[1768865798740,0.86595202,3196.2,3194.8,3.437]
[1768865798942,0.1388464,3196.3,3195.0,1.30689274]
[1768865799144,0.865952,3196.2,3195.0,1.30689274]
[1768865799332,0.86602355,3196.1,3195.0,1.30689274]
[1768865799531,0.1388464,3196.3,3195.0,1.30689274]
[1768865799735,0.86602299,3196.2,3195.0,1.30689274]
[1768865799935,0.86602299,3196.1,3195.0,1.30689274]
[1768865800136,0.1388464,3196.3,3195.0,1.30689274]
[1768865800337,0.86602818,3196.2,3195.0,1.30689274]
[1768865800536,0.86602818,3196.1,3194.8,3.437]
[1768865800844,0.1388464,3196.3,3195.0,1.30689274]
[1768865801042,0.86608774,3196.2,3195.0,1.30689274]
[1768865801243,0.86608774,3196.1,3195.0,1.30689274]
[1768865801536,1.30689274,3195.8,3194.6,0.15661]
[1768865801745,1.30689274,3195.8,3194.7,3.446]
[1768865801930,1.26952263,3196.4,3195.2,1.30689274]
[1768865802239,0.86611477,3196.3,3195.2,1.30689274]
[1768865802440,0.86611477,3196.2,3195.2,1.30689274]
[1768865802641,0.86611477,3196.1,3195.2,1.30689274]
[1768865802838,0.15652,3196.4,3194.7,3.6026]
[1768865803145,0.15652,3196.4,3194.8,3.446]
[1768865803146,0.13546579,3196.2,3194.8,3.446]
[1768865803446,0.13546579,3196.0,3194.8,3.446]
[1768865806745,0.13546579,3195.8,3194.4,40.8]
[1768865806935,0.13546579,3195.6,3194.4,3.452]
[1768865807134,1.0015593,3195.5,3194.1,0.15663]
[1768865807431,0.13546579,3195.5,3194.2,3.453]
[1768865808642,0.13546579,3195.5,3194.3,3.453]
[1768865813647,0.13546579,3195.5,3194.1,0.15663]
[1768865813852,0.13546579,3195.5,3194.2,3.46]
[1768865817652,0.13546579,3195.5,3194.3,3.466]
[1768865818448,0.13546579,3195.5,3194.3,3.467]
[1768865819154,0.86436483,3195.4,3193.5,2.78161592]
[1768865819351,0.13272869,3195.2,3193.9,3.468]
[1768865819562,0.15657,3195.5,3193.9,3.468]
[1768865819759,0.86427589,3195.4,3193.9,3.468]
[1768865819961,0.86427589,3195.3,3193.9,3.468]
[1768865820266,0.13272869,3195.4,3193.9,3.468]
[1768865820461,0.13272869,3195.2,3193.9,3.468]
[1768865823371,0.13272869,3195.6,3194.0,1.46360905]
[1768865823670,0.86845994,3195.5,3194.0,0.15664]
[1768865823973,0.86845994,3195.4,3194.0,0.15664]
[1768865824171,0.13272869,3195.6,3194.0,0.15664]
[1768865824372,1.66564278,3195.9,3194.0,0.15664]
[1768865824373,1.00132178,3195.5,3194.0,0.15664]
[1768865824566,0.13272869,3195.3,3194.1,3.476]
[1768865824876,1.00132178,3195.2,3194.1,3.476]
[1768865825076,0.13272869,3195.2,3193.7,40.95665]
[1768865825274,0.13272869,3195.2,3193.8,3.476]
[1768865825872,0.13272869,3195.2,3193.8,3.63265]
[1768865826172,0.13272869,3195.6,3194.1,0.15663]
[1768865826367,0.86855825,3195.5,3194.1,0.15663]
[1768865826571,0.86855825,3195.4,3194.1,0.15663]
[1768865826870,0.13272869,3195.6,3194.1,0.15663]
[1768865827172,0.86775758,3195.5,3194.1,0.15663]
[1768865827379,0.86775758,3195.4,3194.1,0.15663]
[1768865827667,0.13272869,3195.6,3194.1,0.15663]
[1768865827868,0.13272869,3195.4,3194.2,3.481]
[1768865828075,0.13272869,3195.2,3194.1,3.481]
[1768865829174,0.13272869,3195.2,3194.1,3.482]
[1768865830065,0.13272869,3195.2,3194.1,3.484]
[1768865832375,0.86823227,3195.1,3193.7,40.8]
[1768865832575,0.13272869,3195.2,3194.0,3.487]
[1768865832776,0.13272869,3195.0,3193.7,40.8]
[1768865833077,0.13272869,3195.0,3193.8,3.487]
[1768865835177,0.13272869,3195.0,3193.5,0.15666]
[1768865835372,0.13272869,3195.0,3193.6,3.49]
[1768865835573,0.13272869,3195.0,3193.7,3.491]
[1768865836273,1.30696905,3195.1,3193.5,0.15666]
[1768865836274,1.00170756,3194.9,3193.5,0.15666]
[1768865836475,0.13272869,3194.6,3193.3,0.00261021]
[1768865836782,0.8688406,3194.5,3193.3,0.00261021]
[1768865836986,0.13272869,3194.6,3193.3,0.00261021]
[1768865837681,0.13272869,3194.4,3193.3,0.00261021]
[1768865837982,0.86843739,3194.3,3193.3,0.00261021]
[1768865838182,0.13498435,3194.4,3193.3,0.00261021]
[1768865838378,0.86792969,3194.3,3193.3,0.00261021]
[1768865838585,0.13498435,3194.4,3193.3,0.00261021]
[1768865838784,0.86792965,3194.3,3193.3,0.00261021]
[1768865838986,0.13498435,3194.4,3193.3,0.00261021]
[1768865839176,1.0006573,3194.3,3193.3,0.00261021]
[1768865839379,0.13272869,3194.3,3193.3,0.00261021]
[1768865844791,0.86609796,3194.2,3193.3,0.00261021]
[1768865845087,0.13272869,3194.3,3193.3,0.00261021]
[1768865853192,0.13272869,3194.3,3192.8,0.1567]
[1768865853193,0.13575638,3194.1,3193.0,3.504]
[1768865853800,0.13575638,3194.1,3192.4,40.8]
[1768865854099,0.13575638,3193.7,3192.5,3.504]
[1768865854303,0.13575638,3193.7,3192.4,0.00350192]
[1768865855800,0.13575638,3193.3,3191.7,40.95675]
[1768865855992,0.13575638,3193.3,3191.8,3.503]
[1768865856597,0.13575638,3193.3,3191.7,40.95675]
[1768865856598,0.13575638,3193.3,3191.9,3.504]
[1768865856795,0.13575638,3193.3,3191.9,3.50668326]
[1768865857100,0.13575638,3193.3,3191.9,3.50768326]
[1768865858292,0.13575638,3193.8,3192.0,1.30696905]
[1768865858602,0.86392144,3193.7,3192.0,1.46370905]
[1768865858793,0.13575638,3193.8,3192.0,1.46370905]
[1768865858989,0.86391318,3193.7,3192.0,1.46370905]
[1768865859296,0.13575638,3193.8,3192.1,3.506]
[1768865859598,0.99967397,3193.7,3192.1,3.506]
[1768865859896,0.13575638,3193.4,3191.9,0.00268326]
[1768865860100,0.13575638,3193.4,3192.0,3.505]
[1768865860809,0.13575638,3193.4,3191.9,0.00268326]
[1768865860996,0.13575638,3193.4,3191.9,3.50868326]
[1768865862899,0.13575638,3193.4,3191.9,4.97239231]
[1768865863105,0.13667729,3193.8,3192.0,0.15674]
[1768865863307,0.86421022,3193.7,3192.0,0.15674]
[1768865863605,0.86421022,3193.6,3192.2,0.15673]
[1768865863809,7.72730992,3194.2,3192.2,0.15673]
[1768865864008,0.13667729,3194.0,3192.2,0.15673]
[1768865864307,1.00093929,3193.9,3192.2,0.15673]
[1768865864510,0.864262,3193.8,3192.2,0.15673]
[1768865864902,1.3090454,3193.7,3192.3,1.3090454]
[1768865865203,1.3090454,3193.3,3192.2,0.15673]
[1768865865409,1.3090454,3192.9,3192.2,0.15673]
[1768865865701,1.3090454,3193.2,3192.2,0.15673]
[1768865866211,1.44572269,3193.7,3192.3,1.3090454]
[1768865866410,0.86514605,3193.6,3192.3,1.3090454]
[1768865866707,1.44572269,3193.7,3192.3,1.3090454]
[1768865866908,0.86514516,3193.6,3192.3,1.3090454]
[1768865867107,2.17419409,3193.5,3192.3,1.3090454]
[1768865867307,1.44572269,3193.5,3192.2,0.15673]
[1768865867611,1.44572269,3193.5,3192.3,3.509]
[1768865867612,1.3090454,3193.3,3192.3,3.509]
[1768865868607,1.3090454,3193.3,3192.2,0.15673]
[1768865869304,1.3090454,3192.9,3191.9,0.00268326]
[1768865869508,1.3090454,3192.9,3192.0,3.508]
[1768865869704,1.44572269,3193.1,3192.0,3.508]
[1768865872215,1.44572269,3192.9,3191.9,3.51368326]
[1768865873107,1.44572269,3192.9,3191.9,3.51468326]
[1768865873810,1.44572269,3192.9,3191.9,0.00268326]
[1768865874014,1.44572269,3192.9,3191.9,3.51568326]
[1768865874318,1.44572269,3192.9,3191.9,3.51668326]
[1768865874501,0.13667729,3192.9,3191.9,3.51668326]
[1768865874706,1.3090454,3192.8,3191.9,3.51668326]
[1768865875413,1.3090454,3192.8,3191.9,0.00268326]
[1768865875616,1.45393794,3192.4,3191.9,0.00268326]
[1768865876214,1.45393794,3192.4,3191.5,3.338]
[1768865876717,0.14489254,3192.4,3191.4,3.516]
[1768865876914,1.45393794,3192.8,3191.4,4.8250454]
[1768865877124,1.45393794,3192.8,3191.4,4.82880862]
[1768865877513,1.45393794,3192.8,3191.4,3.51976322]
[1768865877717,0.14489254,3192.7,3191.4,3.51976322]
[1768865878607,0.14489254,3192.7,3191.4,0.00376322]
[1768865878802,1.3090454,3192.6,3191.4,3.52276322]
[1768865879010,0.14489254,3192.5,3191.4,0.00376322]
[1768865880017,4.07256216,3194.0,3191.4,0.00376322]
[1768865880018,1.45393794,3192.4,3191.4,0.00376322]
[1768865880221,1.3090454,3192.0,3191.4,0.00376322]
[1768865880515,1.3090454,3191.8,3190.9,3.52]
[1768865880719,1.3090454,3191.8,3190.7,0.1568]
[1768865880904,1.3090454,3191.8,3190.8,40.8]
[1768865881107,1.3090454,3191.8,3190.7,3.6768]
[1768865881108,1.3090454,3191.8,3190.7,0.1568]
[1768865881304,1.3090454,3191.6,3190.7,0.00260341]
[1768865882015,1.45393794,3191.8,3190.7,0.00260341]
[1768865882711,0.14489254,3191.8,3190.7,0.00260341]
[1768865883619,1.3090454,3191.7,3190.7,0.00260341]
[1768865884715,1.45393794,3191.7,3190.7,0.00260341]
[1768865885014,1.3090454,3191.5,3190.7,0.00260341]
[1768865885813,1.3090454,3191.3,3190.0,1.3090454]
[1768865886112,1.3090454,3191.1,3189.8,1.3090454]
[1768865886318,1.45393794,3191.3,3190.1,3.525]
[1768865886711,1.45393794,3191.3,3189.7,1.3090454]
[1768865886712,1.3090454,3191.1,3189.7,1.3090454]
[1768865886912,1.45393794,3191.1,3189.8,3.524]
[1768865887112,1.45393794,3191.1,3189.8,3.5279992]
[1768865887319,1.3090454,3190.9,3189.8,0.0039992]
[1768865887516,0.14489254,3190.8,3189.8,0.0039992]
[1768865887813,1.3090454,3190.7,3189.8,0.0039992]
[1768865888014,1.45393794,3190.7,3189.8,0.0039992]
[1768865888209,1.11300263,3191.8,3189.8,0.0039992]
[1768865888419,1.45393794,3191.2,3189.8,1.3130446]
[1768865889114,1.45393794,3191.0,3189.8,1.3130446]
[1768865889320,1.45393794,3191.0,3189.8,0.0039992]
[1768865890020,0.14489254,3190.9,3189.8,0.0039992]
[1768865890216,1.45393794,3190.8,3189.8,0.0039992]
[1768865890519,0.14489254,3190.7,3189.8,0.0039992]
[1768865890720,0.14489254,3191.1,3189.9,1.3090454]
[1768865891323,0.14489254,3190.9,3189.8,0.0039992]
[1768865891511,0.14489254,3190.8,3189.8,0.0039992]
[1768865891716,0.14489254,3191.5,3190.3,1.3090454]
[1768865892013,0.14489254,3191.5,3190.5,1.3090454]
[1768865892415,0.14489254,3191.5,3190.3,1.3090454]
[1768865892623,0.14716846,3192.0,3190.4,1.3090454]
[1768865892810,0.14489254,3191.8,3190.4,1.3090454]
[1768865893011,0.14489254,3191.7,3190.4,1.3090454]
[1768865893211,0.14489254,3191.7,3190.6,1.3090454]
[1768865893415,1.45393794,3191.6,3190.4,3.525]
[1768865893618,0.14489254,3191.6,3190.4,3.525]
[1768865893816,0.14489254,3191.6,3190.7,1.3090454]
[1768865894012,0.00227592,3192.0,3190.9,1.3090454]
[1768865896224,0.14716846,3192.0,3190.4,3.68182]
[1768865896418,0.14489254,3191.8,3190.4,0.15682]
[1768865896723,0.14489254,3191.7,3190.5,3.522]
[1768865897318,0.14489254,3191.7,3190.5,3.67881]
[1768865897518,0.00227592,3192.0,3190.5,3.67881]
[1768865899015,0.00227592,3192.0,3191.0,0.15679]
[1768865900927,0.00227592,3192.0,3191.1,3.526]
[1768865904129,0.00227592,3192.0,3191.2,3.531]
[1768865905734,0.00227592,3192.0,3191.0,0.15679]
[1768865905942,0.00227592,3192.0,3191.1,3.532]
[1768865907244,0.14653172,3192.0,3191.2,3.534]
[1768865909236,0.00227592,3192.0,3191.2,3.534]
[1768865909431,0.1442558,3192.5,3191.2,3.534]
[1768865910546,0.14795452,3192.5,3191.2,3.534]
[1768865910949,0.00369872,3192.5,3191.2,3.534]
[1768865911244,0.00369872,3192.5,3191.4,0.15677]
[1768865911447,0.14795452,3192.5,3191.5,3.534]
[1768865912149,0.14795452,3192.5,3191.4,0.15677]
[1768865912450,0.14795452,3192.5,3191.5,3.533]
[1768865914443,0.14795452,3192.5,3191.4,0.15677]
[1768865914750,0.14795452,3192.5,3191.5,3.531]
[1768865916748,0.14795452,3192.5,3191.4,0.15677]
[1768865916956,0.14795452,3192.5,3191.4,1.46656943]
[1768865918444,0.00369872,3192.5,3191.8,1.30979943]
[1768865919650,0.00369872,3192.5,3192.0,1.30979943]
[1768865919842,0.00012434,3192.5,3192.0,1.30979943]
[1768865920043,0.00012434,3192.5,3191.8,1.30979943]
[1768865921049,0.00012434,3192.5,3191.6,3.53]
[1768865922254,0.00012434,3192.5,3191.6,3.532]
[1768865922855,0.13520468,3192.5,3191.4,40.95677]
[1768865923052,1.44487977,3192.3,3190.9,4.44479943]
[1768865923358,1.44487977,3192.3,3191.4,3.534]
[1768865923555,0.13508034,3192.3,3191.4,3.534]
[1768865924555,0.13508034,3192.0,3191.3,3.535]
[1768865924854,0.13508034,3192.0,3190.9,0.15679]
[1768865925060,0.13508034,3192.0,3190.9,3.69179]
[1768865925454,0.13508034,3192.0,3191.0,1.30979943]
[1768865925652,0.13508034,3192.0,3190.9,0.15679]
[1768865925857,0.13508034,3192.0,3191.0,3.536]
[1768865926958,0.13508034,3192.0,3191.0,3.538]
[1768865928360,0.13508034,3192.0,3191.0,3.539]
[1768865928564,0.13508034,3192.0,3190.7,40.8]
[1768865928755,0.13508034,3191.8,3190.5,3.54]
[1768865929156,0.13508034,3191.8,3190.4,40.8]
[1768865929362,0.13508034,3191.8,3190.5,3.54]
[1768865930061,0.13508034,3191.8,3190.4,40.8]
[1768865930262,0.13508034,3191.8,3190.5,3.541]
[1768865931561,0.13508034,3192.2,3190.7,1.31026651]
[1768865931766,0.13508034,3192.2,3191.1,1.31026651]
[1768865931966,0.13508034,3192.2,3190.8,0.1568]
[1768865932569,0.13508034,3192.0,3190.7,3.543]
[1768865932864,0.13508034,3191.8,3190.7,3.543]
[1768865933273,0.13544147,3192.2,3190.7,3.543]
[1768865933470,0.86912734,3192.1,3190.7,3.543]
[1768865933670,0.13544147,3192.2,3190.7,3.543]
[1768865933671,0.86912734,3192.0,3190.7,3.543]
[1768865933869,0.13544147,3192.2,3190.7,3.543]
[1768865934069,1.00457299,3192.1,3190.7,3.543]
[1768865934273,0.86913152,3192.0,3190.7,3.543]
[1768865934465,0.13544147,3192.1,3190.7,3.543]
[1768865934666,0.13544147,3191.9,3190.7,3.543]
[1768865939675,0.13544147,3191.9,3190.8,3.551]
[1768865939876,0.13544147,3191.9,3190.9,3.552]
[1768865940176,0.13544147,3191.9,3190.3,40.8]
[1768865940371,0.86839692,3191.8,3190.1,3.135]
[1768865940585,0.13544147,3191.7,3190.2,3.553]
[1768865940961,0.13544147,3191.7,3190.2,44.353]
[1768865941162,0.13544147,3191.7,3190.3,3.552]
[1768865942275,0.13544147,3191.7,3190.1,40.95683]
[1768865942276,0.13544147,3191.5,3190.4,3.553]
[1768865942979,0.13544147,3191.5,3190.4,3.554]
[1768865943980,1.11300263,3192.1,3190.4,3.554]
[1768865944278,0.13544147,3192.0,3190.4,3.554]
[1768865944479,0.86639108,3191.9,3190.4,3.554]
[1768865944664,1.00183255,3191.9,3190.4,3.554]
[1768865944864,1.00183255,3191.9,3190.4,3.71081]
[1768865944865,0.13544147,3191.9,3190.4,3.71081]
[1768865945366,0.13544147,3191.9,3190.4,3.554]
[1768865945570,0.13544147,3192.3,3190.7,0.1568]
[1768865945781,0.86655366,3192.2,3190.7,0.1568]
[1768865945971,0.86655366,3192.1,3190.7,0.1568]
[1768865946172,0.13544147,3192.3,3190.7,0.1568]
[1768865946474,0.13544147,3192.1,3190.7,0.1568]
[1768865947378,0.13544147,3192.1,3190.8,3.557]
[1768865947579,0.13544147,3192.1,3190.1,0.15683]
[1768865947780,0.13544147,3191.9,3190.2,6.691]
[1768865948374,0.13544147,3191.9,3190.1,0.15683]
[1768865948572,0.13544147,3191.9,3190.2,6.693]
[1768865948980,0.13544147,3191.9,3190.2,6.84983]
[1768865949176,0.13544147,3191.9,3190.4,0.15682]
[1768865952686,0.13544147,3191.9,3190.5,3.569]
[1768865953182,0.13544147,3191.9,3190.5,3.72581]
[1768865953384,0.13544147,3191.9,3190.6,0.15681]
[1768865957185,0.13544147,3191.9,3190.7,3.575]
[1768865959492,0.13544147,3191.9,3190.6,0.15681]
[1768865959680,0.13544147,3191.7,3190.7,3.578]
[1768865962899,0.13544147,3191.7,3190.8,3.582]
[1768865964302,0.13544147,3191.7,3190.6,0.15681]
[1768865964501,0.13544147,3191.7,3190.7,3.584]
[1768865965302,0.13544147,3191.7,3190.6,0.15681]
[1768865965494,0.13544147,3191.7,3190.7,3.585]
[1768865967599,1.24718011,3192.2,3190.7,3.585]
[1768865967796,0.86919493,3192.1,3190.7,3.585]
[1768865968106,0.86919493,3192.0,3190.7,3.585]
[1768865968299,0.86919493,3191.9,3190.7,3.585]
[1768865968600,0.86919493,3191.8,3190.7,3.585]
[1768865968797,0.13417748,3192.0,3190.7,3.585]
[1768865968996,0.86801593,3191.9,3190.7,3.585]
[1768865969191,0.86801593,3191.8,3190.7,3.585]
[1768865969387,0.13417748,3192.0,3190.7,3.585]
[1768865969593,0.86801575,3191.9,3190.7,3.585]
[1768865969790,0.86801575,3191.8,3190.7,3.585]
[1768865969990,0.13417748,3192.0,3190.7,3.585]
[1768865970190,0.86801575,3191.9,3190.7,3.585]
[1768865970402,0.86801575,3191.8,3190.7,3.585]
[1768865970603,0.13417748,3192.0,3190.7,3.585]
[1768865970794,0.86802848,3191.9,3190.7,3.585]
[1768865970994,0.86802848,3191.8,3190.7,3.585]
[1768865971196,0.13417748,3192.0,3190.7,3.585]
[1768865971396,0.13417748,3191.8,3190.8,3.591]
[1768865971607,0.13417748,3191.6,3190.8,3.591]
[1768865972903,0.13417748,3191.6,3190.8,3.593]
[1768865994423,0.13417748,3191.6,3190.6,4.93454909]
[1768865994719,0.13417748,3191.6,3190.6,3.624]
[1768865995526,1.01238095,3191.5,3190.6,3.624]
[1768865995818,0.14490981,3191.5,3190.6,3.624]
[1768865997310,1.11300263,3192.0,3191.3,1.31054909]
[1768865997515,1.01244713,3191.9,3190.7,1.31054909]
[1768865997726,1.01244713,3191.8,3190.8,3.628]
[1768865997926,0.86753732,3191.7,3190.8,3.628]
[1768865998224,0.14490981,3191.8,3190.5,1.46735909]
[1768865998527,1.4554589,3191.6,3190.6,3.628]
[1768865999614,0.14490981,3191.6,3190.6,3.628]
[1768866000526,1.4554589,3191.6,3190.7,3.632]
[1768866000825,0.14490981,3191.6,3190.7,3.632]
[1768866002422,1.25791244,3192.0,3190.8,1.31054909]
[1768866002625,1.00684219,3191.9,3190.8,1.31054909]
[1768866002823,0.86193238,3191.8,3190.8,1.31054909]
[1768866003826,0.86193238,3191.8,3190.7,3.632]
[1768866012023,0.14490981,3191.7,3190.2,2.81407776]
[1768866012221,0.14490981,3191.5,3190.3,3.649]
[1768866012419,0.14490981,3191.9,3190.6,1.31054909]
[1768866012620,0.14490981,3191.7,3190.4,1.31054909]
[1768866012826,0.14490981,3191.7,3190.7,3.65]
[1768866016130,0.14490981,3191.7,3190.4,1.31054909]
[1768866016334,0.14490981,3191.7,3190.5,3.655]
[1768866016524,0.14490981,3191.7,3190.6,3.656]
[1768866016825,0.99809768,3191.6,3190.6,3.656]
[1768866017025,0.14490981,3191.6,3190.6,3.656]
[1768866018930,0.14490981,3191.6,3190.4,1.31054909]
[1768866019136,0.14490981,3191.6,3190.5,4.97054909]
[1768866022333,1.25791244,3192.0,3190.7,1.31054909]
[1768866022534,0.14490981,3191.8,3190.7,1.31054909]
[1768866022729,0.99814349,3191.7,3190.7,3.666]
[1768866023035,0.85323368,3191.6,3190.7,3.666]
[1768866023337,0.14490981,3191.7,3190.7,3.666]
[1768866023535,0.85323432,3191.6,3190.7,3.666]
[1768866023738,0.14490981,3191.7,3190.7,3.666]
[1768866023933,0.98562927,3191.6,3190.7,3.668]
[1768866024134,0.13239436,3191.6,3190.7,3.668]
[1768866028134,1.24539699,3192.0,3190.8,1.31054909]
[1768866028334,0.85342826,3191.9,3190.8,1.31054909]
[1768866028536,0.85342826,3191.8,3190.8,1.31054909]
[1768866028736,0.85342826,3191.7,3190.8,1.31054909]
[1768866028934,0.13239436,3192.0,3190.7,3.668]
[1768866028935,0.13239436,3192.0,3191.0,1.31054909]
[1768866029136,0.85342565,3191.9,3191.0,1.31054909]
[1768866029337,0.85342565,3191.8,3191.0,1.31054909]
[1768866029540,0.85342565,3191.7,3191.0,1.31054909]
[1768866029838,0.13239436,3192.0,3191.0,1.31054909]
[1768866030138,0.85338674,3191.9,3191.4,1.31054909]
[1768866030341,0.1325187,3192.5,3191.6,1.31054909]
[1768866030531,0.85128627,3192.4,3191.6,1.31054909]
[1768866030839,0.85128627,3192.3,3191.4,1.31054909]
[1768866031039,0.85128627,3192.2,3191.4,1.31054909]
[1768866031230,0.1325187,3192.5,3191.4,1.31054909]
[1768866031430,0.85153418,3192.4,3191.4,1.31054909]
[1768866031740,0.85153418,3192.3,3191.6,1.31054909]
[1768866031942,0.1325187,3192.5,3191.4,1.31054909]
[1768866032146,0.84850193,3192.4,3191.4,1.31054909]
[1768866032444,0.1325187,3192.5,3191.6,1.31054909]
[1768866032640,0.84826497,3192.4,3191.6,1.31054909]
[1768866032841,0.1325187,3192.5,3191.6,1.31054909]
[1768866033042,0.8482646,3192.4,3191.6,1.31054909]
[1768866033354,0.1325187,3192.5,3191.6,1.31054909]
[1768866035242,0.1325187,3192.5,3191.5,3.674]
[1768866036743,0.1325187,3192.5,3191.6,1.31054909]
[1768866037533,0.00012434,3192.5,3191.6,1.31054909]
[1768866038943,0.00012434,3192.5,3191.5,3.674]
[1768866040744,0.00012434,3192.5,3191.4,1.31054909]
[1768866040949,0.00012434,3192.5,3191.5,3.683]
[1768866045048,0.00012434,3192.5,3191.4,1.31054909]
[1768866045243,0.00012434,3192.5,3191.6,3.688]
[1768866061663,0.00012434,3192.5,3191.7,0.15675]
[1768866061969,0.13417742,3193.5,3192.2,1.30978448]
[1768866062267,0.13417742,3193.5,3192.3,3.712]
[1768866062763,0.13417742,3193.9,3192.3,3.86872]
[1768866062966,0.84778954,3193.8,3192.6,1.30978448]
[1768866063267,0.00374281,3193.9,3192.7,0.1567]
[1768866063465,0.00374281,3193.9,3192.7,40.9567]
[1768866064364,0.13792023,3193.9,3192.7,40.9567]
[1768866064671,0.13792023,3193.9,3192.3,3.13647752]
[1768866064863,0.13417742,3193.5,3192.3,0.00247752]
[1768866065860,0.13417742,3193.1,3192.3,0.00247752]
[1768866066162,0.13417742,3193.1,3191.8,3.713]
[1768866067173,0.13417742,3193.1,3191.8,3.71643739]
[1768866067672,0.13417742,3193.1,3191.8,0.00343739]
[1768866067869,0.13417742,3192.9,3191.8,0.00343739]
[1768866084084,0.13417742,3192.9,3191.9,3.731]
[1768866084388,0.13417742,3192.9,3191.8,0.00343739]
[1768866084578,0.13191316,3192.7,3191.8,0.00343739]
[1768866095179,0.13191316,3192.5,3191.8,0.00343739]
[1768866099793,1.11928005,3193.2,3191.8,0.00343739]
[1768866099988,0.84368223,3193.1,3191.8,1.31322187]
[1768866100290,0.84368223,3193.0,3191.8,1.46997187]
[1768866100479,1.11928005,3193.5,3192.0,0.15674]
[1768866100682,1.11928005,3193.8,3192.3,0.15672]
[1768866100884,0.00374281,3193.9,3192.4,44.70772]
[1768866100885,0.84240013,3193.7,3192.4,44.70772]
[1768866101091,0.00374281,3193.9,3192.6,1.30978448]
[1768866101486,0.00374281,3193.9,3192.6,1.46649448]
[1768866101686,0.00374281,3193.9,3192.6,1.30978448]
[1768866101986,0.00374281,3193.9,3192.7,0.1567]
[1768866103393,0.14429441,3193.9,3192.8,3.754]
[1768866103777,0.14429441,3193.9,3192.7,3.754]
[1768866108698,0.1405516,3193.7,3191.8,0.00343739]
[1768866108898,0.1405516,3193.7,3191.9,3.76]
[1768866109292,0.1405516,3193.7,3192.0,40.8]
[1768866109485,0.1405516,3193.7,3192.0,40.95674]
[1768866110890,0.1405516,3193.6,3192.4,1.30903467]
[1768866112498,0.1405516,3193.6,3192.2,1.30903467]
[1768866112800,1.44958627,3193.3,3192.3,3.765]
[1768866113014,0.1405516,3193.3,3192.3,3.765]
[1768866113899,0.1405516,3193.3,3192.4,1.30903467]
[1768866114100,0.1445527,3193.7,3192.4,1.30903467]
[1768866115006,1.45358737,3193.2,3192.3,3.767]
[1768866115194,1.45358737,3193.2,3191.8,1.31247206]
[1768866115398,1.30903467,3193.0,3191.9,3.768]
[1768866115700,0.1445527,3193.1,3191.9,3.768]
[1768866116203,0.1445527,3193.1,3192.0,3.768]
[1768866117496,0.1445527,3193.1,3192.0,5.07703467]
[1768866119303,0.1445527,3193.6,3192.4,1.30903467]
[1768866119497,0.00374281,3193.9,3193.1,1.30903467]
[1768866120104,0.00374281,3193.9,3193.0,3.773]
[1768866120503,1.30903467,3193.5,3192.0,2.81407776]
[1768866120705,1.30903467,3193.7,3192.2,1.30903467]
[1768866121017,1.30903467,3193.7,3192.4,1.30903467]
[1768866121503,1.30903467,3193.7,3192.5,3.773]
[1768866121905,0.00374281,3193.9,3192.8,1.30903467]
[1768866123010,0.00374281,3193.9,3192.6,1.30903467]
[1768866124508,1.31277748,3193.9,3192.6,1.30903467]
[1768866125009,1.45733018,3193.9,3192.6,1.30903467]
[1768866125806,1.30903467,3193.3,3191.9,6.21515855]
[1768866126001,1.30903467,3193.3,3192.0,3.769]
[1768866126207,1.30903467,3193.5,3192.1,1.30903467]
[1768866126913,1.45358737,3193.7,3192.3,1.30903467]
[1768866127107,0.1445527,3193.7,3192.3,1.30903467]
[1768866127299,1.45358737,3193.7,3192.3,1.30903467]
[1768866129216,0.83890889,3193.6,3192.3,1.30903467]
[1768866129410,1.45358737,3193.7,3192.3,1.30903467]
[1768866129719,0.83890945,3193.6,3192.3,1.30903467]
[1768866129903,0.1445527,3193.6,3192.3,1.30903467]
[1768866130305,1.30903467,3193.5,3192.1,1.30903467]
[1768866130608,1.45358737,3193.5,3192.2,3.774]
[1768866135518,1.45358737,3193.5,3192.3,1.30903467]
[1768866135921,0.1445527,3193.5,3192.2,3.774]
[1768866136124,0.1445527,3193.5,3192.2,5.08303467]
[1768866138516,0.1445527,3193.3,3192.2,3.774]
[1768866138708,1.30903467,3193.2,3192.3,3.784]
[1768866139319,0.1445527,3193.3,3192.3,3.784]
[1768866150623,1.30903467,3193.6,3192.3,3.784]
[1768866150816,2.14906246,3193.5,3192.3,3.784]
[1768866151123,0.84002779,3193.4,3192.3,3.784]
[1768866158032,1.30903467,3193.1,3192.0,0.15674]
[1768866158329,1.30903467,3193.1,3192.1,3.81]
[1768866159230,1.45262976,3193.3,3192.1,3.81]
[1768866159531,0.84431303,3193.2,3192.1,3.81]
[1768866159829,0.84431303,3193.1,3192.1,3.81]
[1768866160022,1.45262976,3193.3,3192.1,3.81]
[1768866160219,0.8443509,3193.2,3192.1,3.81]
[1768866160427,0.8443509,3193.1,3192.1,3.81]
[1768866160619,1.45262976,3193.3,3192.1,3.81]
[1768866160821,0.84430438,3193.2,3192.1,3.81]
[1768866161018,0.84430438,3193.1,3192.1,3.81]
[1768866161233,1.45262976,3193.3,3192.1,3.81]
[1768866161434,0.84429403,3193.2,3192.1,3.81]
[1768866161634,0.84429403,3193.1,3192.1,3.81]
[1768866161833,1.45262976,3193.3,3192.1,3.81]
[1768866162134,0.84430106,3193.2,3192.1,3.81]
[1768866162334,0.84430106,3193.1,3192.1,3.81]
[1768866162537,1.45262976,3193.3,3192.1,3.81]
[1768866162736,0.84433566,3193.2,3192.1,3.81]
[1768866162931,0.84433566,3193.1,3192.1,3.81]
[1768866163126,1.45262976,3193.3,3192.1,3.81]
[1768866163430,0.84435999,3193.2,3192.1,3.81]
[1768866163633,0.84435999,3193.1,3192.1,3.81]